fUSD/lending_fUSD_20240115
["ID","MTS","AMOUNT","RATE_DAILY","PERIOD"]
[311672719,1705306791726,-1000.0,0.00046,30]
[311672720,1705306791759,-1200.0,0.00046,120]
[311672721,1705306791792,-1292.0,0.00046,120]
[311672722,1705306791823,-82603.5046239,0.00046,45]
[311672723,1705306791854,-250.0,0.00046,60]
[311672724,1705306791886,-176.49,0.00046,120]
[311672725,1705306791918,-1000.0,0.00046,120]
[311672726,1705306791951,-1121.0,0.00046,120]
[311672727,1705306791983,-200.0,0.00046,30]
[311672728,1705306792016,-1000.0,0.00046056,30]
[311672729,1705306792047,-2000.0,0.0004606,120]
[311672730,1705306792079,-472.22358361,0.00046388,60]
[311672731,1705306792113,-400.0,0.00046521,120]
[311672732,1705306792144,-39259.918312,0.00046548,120]
[311672733,1705306792175,-258644.494501,0.00046548,120]
[311672734,1705306792206,-500.0,0.00046575,60]
[311672735,1705306792239,-404.23172254,0.00046575,120]
[311672736,1705306792277,-500.0,0.00046575,120]
[311672737,1705306792311,-279.173427,0.00046575,120]
[311672738,1705306792341,-500.0,0.00046575,120]
[311672739,1705306792376,-277.54354072,0.00046575,120]
[311672740,1705306792406,-510.0,0.00046575,120]
[311672741,1705306792439,-500.0,0.00046575,120]
[311672742,1705306792470,-503.98447517,0.00046575,120]
[311672743,1705306792502,-500.0,0.00046575,120]
[311672744,1705306792533,-182.33628484,0.00046575,120]
[311672745,1705306792564,-1068.62730332,0.00046575,120]
[311672746,1705306792596,-1068.62730332,0.00046575,120]
[311672747,1705306792631,-1068.62730332,0.00046575,120]
[311672748,1705306792664,-1068.62730332,0.00046575,120]
[311672749,1705306792695,-1068.62730332,0.00046575,120]
[311672750,1705306792727,-1068.62730332,0.00046575,120]
[311672751,1705306792757,-375.0,0.00046575,120]
[311672752,1705306792789,-350.0,0.00046575,120]
[311672753,1705306799425,4034.43785801,0.00036,30]
[311672754,1705306800232,159.29032926,0.0004,30]
[311672755,1705306800664,537.94331415,0.0004,120]
[311672756,1705306801640,150.0,0.0004,30]
[311672757,1705306802492,1595.30483952,0.00042,40]
[311672758,1705306806145,14697.30693894,0.000419,30]
[311672759,1705306806843,435.05563487,0.00044,30]
[311672760,1705306807237,477.12480838,0.0004475,30]
[311672761,1705306808057,3228.31450634,0.0004,30]
[311672762,1705306815691,534.61,0.00022,2]
[311672763,1705306870141,164.69,0.00021953,2]
[311672764,1705306877430,280.68,0.00020017,2]
[311672765,1705306905241,166.79,0.00021884,2]
[311672766,1705306905851,211.07923828,0.00020608,2]
[311672767,1705306911123,157.06,0.00022048,2]
[311672768,1705306915749,358.01,0.00021907,2]
[311672769,1705306927660,155.94,0.00021879,2]
[311672770,1705306936920,2000.0,0.00021905,2]
[311672771,1705306972118,23900.0,0.00021929,2]
[311672772,1705306986299,500.0,0.00021993,2]
[311672773,1705307044100,202.0,0.00021576,2]
[311672774,1705307111019,250.0,0.000205,2]
[311672775,1705307169153,200.0,0.00022007,2]
[311672776,1705307172808,892.47,0.00022032,2]
[311672777,1705307186516,250.0,0.00022032,2]
[311672778,1705307234270,150.0,0.00021973,2]
[311672779,1705307245888,200.0,0.00021973,2]
[311672783,1705307318175,284.75,0.0002001,2]
[311672784,1705307328816,654.91,0.00021888,2]
[311672791,1705307362079,362.61,0.00021899,2]
[311672794,1705307383035,2000.0,0.00021907,2]
[311672795,1705307401209,160.07,0.00022072,2]
[311672796,1705307412687,23900.0,0.00021907,2]
[311672803,1705307431814,-281.06093368,0.00022116,2]
[311672804,1705307431824,-512.44453856,0.00022117,2]
[311672805,1705307431926,-347.34031176,0.00022117,2]
[311672806,1705307431943,-106.83335762,0.00022117,2]
[311672807,1705307431954,-161.55,0.00022132,2]
[311672808,1705307431965,-176.61,0.00022147,2]
[311672809,1705307431975,-284.75,0.00022274,2]
[311672810,1705307431986,-176.2,0.00022598,2]
[311672811,1705307431996,-494.14360933,0.00022669,2]
[311672812,1705307432007,-319.62,0.000227,2]
[311672813,1705307432016,-499.99,0.000227,2]
[311672814,1705307432027,-500.0,0.000227,8]
[311672815,1705307432036,-154.49,0.00022706,2]
[311672816,1705307432047,-160.10724948,0.00022726,2]
[311672817,1705307432057,-394.95584771,0.00022768,2]
[311672818,1705307432067,-150.99,0.00022768,2]
[311672819,1705307432078,-716.54898821,0.000228,2]
[311672820,1705307432088,-1586.33189279,0.000228,2]
[311672823,1705307432115,-1970.87493383,0.000228,2]
[311672825,1705307432127,-2271.7565,0.000228,2]
[311672828,1705307432152,-256.24522155,0.000228,2]
[311672831,1705307432173,-612.90951479,0.000228,2]
[311672872,1705307437979,-500.0,0.00022438,2]
[311672873,1705307437989,-1164.44093704,0.000228,2]
[311672874,1705307437999,-205.797,0.000228,2]
[311672875,1705307438008,-1070.6199,0.000228,2]
[311672876,1705307438018,-2869.8311,0.000228,2]
[311672877,1705307438028,-301.55543035,0.000228,2]
[311672878,1705307438037,-277.46210494,0.000228,2]
[311672879,1705307438046,-1100.0,0.000228,8]
[311672880,1705307438055,-277.46210491,0.0002285,2]
[311672881,1705307438066,-362.61,0.00022878,2]
[311672882,1705307438076,-177.3909652,0.00022883,2]
[311672883,1705307438085,-228.31465948,0.00022889,2]
[311672884,1705307438095,-7842.77222918,0.00022899,2]
[311672885,1705307438226,-1578.65663308,0.00022899,2]
[311672886,1705307438238,-1001.18169509,0.00022899,2]
[311672887,1705307438251,-34084.76948748,0.00022899,2]
[311672888,1705307438286,-1477.54599615,0.00022899,2]
[311672889,1705307438385,-7999.3368,0.00022899,2]
[311672890,1705307438467,-410.67021678,0.00022899,2]
[311672891,1705307438479,-235778.40284224,0.00022899,2]
[311672892,1705307438489,-277.46210491,0.00022899,2]
[311672893,1705307438499,-38302.2356,0.000229,2]
[311672894,1705307438509,-716.54898821,0.000229,2]
[311672895,1705307438519,-5000.0,0.000229,2]
[311672896,1705307438529,-9671.27508534,0.000229,2]
[311672897,1705307438539,-277.02850576,0.000229,2]
[311672898,1705307438549,-467.70630839,0.000229,2]
[311672899,1705307438559,-1700.0,0.000229,8]
[311672900,1705307438568,-450.92147626,0.00022942,2]
[311672901,1705307438578,-198.24806662,0.00022942,2]
[311672902,1705307438592,-301.55543034,0.00022942,2]
[311672903,1705307438601,-3888.31428554,0.00022942,2]
[311672904,1705307438611,-158.8690458,0.00022942,2]
[311672905,1705307438622,-350.3988574,0.00022942,2]
[311672906,1705307438632,-152.51301999,0.00022942,2]
[311672907,1705307438642,-151.40115,0.00022948,2]
[311672908,1705307438652,-163.40115,0.00022948,2]
[311672909,1705307438662,-160.10724948,0.00022993,2]
[311672910,1705307438672,-982.98747736,0.00022998,2]
[311672911,1705307438682,-832.75806175,0.00022998,2]
[311672912,1705307438693,-48767.29603768,0.00022999,2]
[311672913,1705307438702,-777180.75821421,0.00022999,2]
[311672914,1705307438713,-402657.46843415,0.00023,2]
[311672915,1705307438722,-767036.56591177,0.00023,2]
[311672916,1705307438732,-1655.29884597,0.00023142,2]
[311672917,1705307438742,-350.89,0.00023146,2]
[311672918,1705307438752,-160.01,0.00023193,2]
[311672919,1705307438762,-1309.62074726,0.00023214,2]
[311672920,1705307438772,-160.07,0.00023222,2]
[311672921,1705307438781,-152.97,0.00023296,2]
[311672922,1705307438791,-202.0,0.00023321,2]
[311672923,1705307438802,-205.0,0.00023321,2]
[311672924,1705307438811,-9671.27508531,0.00023497,2]
[311672925,1705307438821,-433769.1276351,0.00023598,3]
[311672926,1705307438831,-152.97,0.00023672,2]
[311672927,1705307438841,-307.792844,0.000238,8]
[311672928,1705307438851,-467.70630836,0.00023802,2]
[311672929,1705307438861,-362.61,0.00023856,2]
[311672930,1705307438872,-200000.0,0.00023894,2]
[311672931,1705307438882,-2300.0,0.000239,8]
[311672932,1705307438891,-152.97,0.00024048,2]
[311672933,1705307438901,-9671.27508531,0.00024094,2]
[311672934,1705307438910,-3550.0,0.000241,2]
[311672935,1705307438923,-2272.0,0.00024342,2]
[311672936,1705307438934,-2903.0,0.00024342,2]
[311672937,1705307438943,-1172.0,0.00024366,2]
[311672938,1705307438953,-152.97,0.00024424,2]
[311672939,1705307438963,-284.75,0.00024538,2]
[311672940,1705307438973,-1510.03,0.00024658,2]
[311672941,1705307438982,-250.0,0.00024658,2]
[311672942,1705307438992,-9671.27508531,0.00024692,2]
[311672943,1705307439002,-500.0,0.000247,2]
[311672944,1705307439012,-467.70630836,0.00024704,2]
[311672945,1705307439022,-3370.524,0.00024735,2]
[311672946,1705307439032,-372.81,0.0002475,2]
[311672947,1705307439042,-892.47,0.00024786,2]
[311672948,1705307439052,-152.97,0.00024799,2]
[311672949,1705307439062,-362.61,0.00024835,2]
[311672950,1705307439072,-156.09442472,0.00024899,2]
[311672951,1705307439081,-171.0,0.0002491,2]
[311672952,1705307439091,-154.49,0.00024977,2]
[311672953,1705307439101,-1350.0,0.00025,3]
[311672954,1705307439111,-307.79284398,0.00025154,10]
[311672955,1705307439120,-408.0,0.00025233,2]
[311672956,1705307439132,-836.14,0.00025233,2]
[311672957,1705307439141,-150.0,0.00025233,2]
[311672958,1705307439150,-150.0,0.00025233,2]
[311672959,1705307439160,-300.0,0.00025233,2]
[311672960,1705307439169,-150.0,0.00025233,2]
[311672961,1705307439178,-587.84,0.00025233,2]
[311672962,1705307439188,-150.0,0.00025233,2]
[311672963,1705307439197,-150.0,0.00025233,2]
[311672964,1705307439207,-703.49,0.00025233,2]
[311672965,1705307439217,-150.0,0.00025233,2]
[311672966,1705307439226,-150.0,0.00025233,2]
[311672967,1705307439236,-150.0,0.00025233,2]
[311672968,1705307439246,-9671.27508531,0.00025289,2]
[311672969,1705307439259,-1000.0,0.0002542,3]
[311672970,1705307439269,-1000.0,0.0002542,3]
[311672971,1705307439279,-452.76947716,0.0002542,3]
[311672972,1705307439289,-2595.94996005,0.0002542,3]
[311672973,1705307439299,-642.49761511,0.0002542,3]
[311672974,1705307439309,-257.19630325,0.0002542,3]
[311672975,1705307439319,-512.85981516,0.0002542,3]
[311672976,1705307439330,-1000.0,0.0002542,3]
[311672977,1705307439340,-1000.0,0.0002542,3]
[311672978,1705307439349,-557.64513371,0.0002542,3]
[311672979,1705307439359,-494.65993108,0.0002542,3]
[311672980,1705307439371,-574.5383841,0.0002542,3]
[311672981,1705307439381,-2522.68481349,0.0002542,3]
[311672982,1705307439391,-314.34,0.00025479,2]
[311672983,1705307439401,-6554.94351991,0.00025606,5]
[311672985,1705307440296,-394.28639563,0.00025606,5]
[311672987,1705307440939,-1050.76008446,0.00025606,5]
[311672988,1705307440949,-84.35007777,0.00025606,2]
[311672989,1705307440961,-383.35623059,0.00025606,2]
[311672990,1705307440970,-1012.25078314,0.00025749,2]
[311672991,1705307441018,-240.19901961,0.00025749,2]
[311672992,1705307441054,5000.0,0.00022,2]
[311672993,1705307442796,-1241.68981186,0.00025749,2]
[311672994,1705307442808,-977.2198747,0.00025749,2]
[311672995,1705307442819,-655.0793876,0.00025749,2]
[311672996,1705307442856,-45873.56112309,0.00025749,2]
[311672997,1705307442865,-19192.32,0.00025786,2]
[311672998,1705307442876,-396.76,0.00025786,2]
[311672999,1705307442885,-450.92147625,0.00025805,2]
[311673000,1705307442895,-198.24806661,0.00025805,2]
[311673001,1705307442904,-3888.31428552,0.00025805,2]
[311673002,1705307442913,-158.86904578,0.00025805,2]
[311673003,1705307442922,-350.3988574,0.00025805,2]
[311673004,1705307442932,-362.61,0.00025813,2]
[311673005,1705307442940,-200.0,0.00025864,2]
[311673006,1705307442950,-9671.27508531,0.00025886,2]
[311673007,1705307442959,-3007.0,0.00026,2]
[311673008,1705307442968,-5000.0,0.00026,2]
[311673009,1705307442977,-150.0,0.00026079,2]
[311673010,1705307442986,-1989.40570101,0.00026094,2]
[311673011,1705307442996,-202.0,0.00026142,6]
[311673012,1705307443005,-305.6118397,0.00026299,2]
[311673013,1705307443014,-1989.40570101,0.00026307,2]
[311673014,1705307443023,-668.48693,0.000264,2]
[311673015,1705307443033,-9671.27508531,0.00026483,2]
[311673016,1705307443042,-151.0,0.000265,7]
[311673017,1705307443051,-307.79284398,0.00026508,12]
[311673018,1705307443061,-467.70630836,0.00026509,3]
[311673019,1705307443070,-1989.40570101,0.0002652,2]
[311673020,1705307443079,-7612.12,0.00026575,2]
[311673021,1705307443089,-300.0,0.00026583,28]
[311673022,1705307443098,-2000.0,0.000266,2]
[311673023,1705307443107,-281.06093368,0.00026728,2]
[311673024,1705307443117,-1989.40570101,0.00026733,2]
[311673025,1705307443127,-362.61,0.00026792,2]
[311673026,1705307443136,-284.75,0.00026802,2]
[311673027,1705307443145,-10000.0,0.00026808,2]
[311673028,1705307443154,-1045.29850448,0.00026849,2]
[311673029,1705307443163,-151.45,0.00026877,2]
[311673030,1705307443173,-150.0,0.00026877,2]
[311673031,1705307443182,-150.0,0.00026877,2]
[311673032,1705307443191,-150.0,0.00026877,2]
[311673033,1705307443200,-150.0,0.00026877,2]
[311673034,1705307443209,-150.0,0.00026877,2]
[311673035,1705307443218,-150.0,0.00026877,2]
[311673036,1705307443228,-150.0,0.00026877,2]
[311673037,1705307443237,-150.0,0.00026877,2]
[311673038,1705307443246,-2900.0,0.000269,9]
[311673039,1705307443255,-1989.40570101,0.00026946,2]
[311673040,1705307443264,-5247.18556169,0.00027,2]
[311673041,1705307443277,-1208.61878385,0.00027,2]
[311673042,1705307443288,-174795.84028114,0.00027,2]
[311673043,1705307443307,-1687.30328561,0.00027,2]
[311673044,1705307443318,-2928.94918669,0.00027,2]
[311673045,1705307443329,-5827.73958195,0.00027,2]
[311673046,1705307443345,-3009.11061401,0.00027,2]
[311673047,1705307443403,-5295.25270506,0.00027,2]
[311673048,1705307443412,-1400.0,0.00027,3]
[311673049,1705307443421,-500.0,0.00027046,2]
[311673050,1705307443430,-9671.27508531,0.0002708,2]
[311673051,1705307443439,-800.0,0.00027178,2]
[311673052,1705307443448,-6136.46036556,0.00027295,2]
[311673064,1705307448272,-520.27750325,0.00025129,2]
[311673065,1705307448332,-539.72249675,0.00025129,2]
[311673066,1705307448341,-138949.10885333,0.00027295,2]
[311673067,1705307448350,-288.29485518,0.00027295,2]
[311673068,1705307448360,-201.017508,0.00027295,7]
[311673069,1705307448369,-151.0,0.00027295,7]
[311673070,1705307448378,-151.0,0.00027295,7]
[311673071,1705307448387,-151.0,0.00027295,7]
[311673072,1705307448396,-278.481452,0.00027295,7]
[311673073,1705307448405,-151.0,0.00027295,7]
[311673074,1705307448414,-151.0,0.00027295,7]
[311673075,1705307448423,-151.0,0.00027295,7]
[311673076,1705307448431,-151.0,0.00027295,7]
[311673077,1705307448441,-176.845864,0.00027295,7]
[311673078,1705307448450,-176.845864,0.00027295,7]
[311673079,1705307448458,-183.0,0.00027295,7]
[311673080,1705307448467,-181.79863532,0.00027296,2]
[311673081,1705307448476,-20000.0,0.00027297,2]
[311673082,1705307448485,-151.0,0.00027297,7]
[311673083,1705307448494,-250.0,0.00027297,2]
[311673084,1705307448503,-55555.0,0.00027297,2]
[311673085,1705307448512,-414.477458,0.000273,2]
[311673086,1705307448521,-417.99759003,0.00027381,2]
[311673087,1705307448530,-156.74104097,0.00027395,2]
[311673088,1705307448539,-2914.87900429,0.00027395,2]
[311673089,1705307448548,-587.73790085,0.00027395,2]
[311673090,1705307448558,-1200.88686892,0.00027395,2]
[311673091,1705307448567,-901.45669986,0.00027395,2]
[311673092,1705307448576,-1815.9387827,0.00027395,2]
[311673093,1705307448586,-151.0,0.00027396,7]
[311673094,1705307448595,-298.10140121,0.00027396,2]
[311673095,1705307448604,-2436.7288395,0.00027396,2]
[311673096,1705307448613,-155.76518588,0.00027396,2]
[311673097,1705307448622,-38281.32393283,0.00027396,2]
[311673098,1705307448632,-549.94537401,0.00027396,2]
[311673099,1705307448641,-150.01,0.00027396,2]
[311673100,1705307448650,-3294.38484961,0.00027396,2]
[311673101,1705307448659,-307.25020269,0.00027396,2]
[311673102,1705307448669,-728.47,0.00027397,2]
[311673103,1705307448678,-151.0,0.00027397,7]
[311673104,1705307448687,-167.255007,0.00027397,7]
[311673105,1705307448697,-151.0,0.00027397,7]
[311673106,1705307448707,-151.0,0.00027397,7]
[311673107,1705307448716,-151.0,0.00027397,7]
[311673108,1705307448725,-151.0,0.00027397,7]
[311673109,1705307448736,-151.0,0.00027397,7]
[311673110,1705307448746,-151.0,0.00027397,7]
[311673111,1705307448755,-176.845864,0.00027397,7]
[311673112,1705307448764,-176.845864,0.00027397,7]
[311673113,1705307448774,-500.0,0.00027397,2]
[311673114,1705307448783,-53325.94528709,0.00027397,2]
[311673115,1705307458978,2836.34603428,0.00022,2]
[311673116,1705307459002,2163.65396572,0.00022,2]
[311673117,1705307482141,155.89419348,0.00020471,2]
[311673118,1705307514409,14856.23850883,0.00020369,2]
[311673119,1705307536375,849.12074931,0.00020471,2]
[311673120,1705307556381,264.38817086,0.00020471,2]
[311673121,1705307759693,3172.0,0.000301,90]
[311673122,1705307884529,8353.654265,0.00022094,2]
[311673123,1705308124615,202.0,0.00021321,2]
[311673124,1705308556985,7965.59062551,0.000221,2]
[311673125,1705308561897,503.60808634,0.00022099,2]
[311673126,1705308576745,41938.70878544,0.0002209,2]
[311673127,1705308581181,189310.52159899,0.000209,2]
[311673128,1705308610904,250.0,0.000205,2]
[311673130,1705308631956,-164.7287992,0.00022355,2]
[311673131,1705308631967,-202.0,0.00022356,2]
[311673132,1705308631977,-157.30938356,0.00022599,2]
[311673133,1705308631987,-951.61640475,0.00022699,2]
[311673137,1705308632017,-57.87053091,0.00022699,2]
[311673139,1705308632028,-150.0,0.00022767,2]
[311673140,1705308632038,-404.50298588,0.00022798,2]
[311673141,1705308632180,-282.33262533,0.00022798,2]
[311673142,1705308632326,-1154.48370751,0.00022798,2]
[311673143,1705308632339,-4038.24517523,0.00022798,2]
[311673144,1705308632349,-5614.9734,0.00022799,2]
[311673145,1705308632359,-2436.4195,0.00022799,2]
[311673146,1705308632370,-404.02,0.00023075,2]
[311673147,1705308632379,-157.30938356,0.00023774,2]
[311673148,1705308632390,-1118.22296994,0.00024099,4]
[311673149,1705308632400,-503.60808634,0.00024099,2]
[311673150,1705308632410,-3550.0,0.000241,2]
[311673151,1705308632420,-6075.27607596,0.000241,2]
[311673152,1705308632433,-6176.36065339,0.000241,2]
[311673153,1705308632445,-719.68708591,0.000241,2]
[311673158,1705308637988,-4871.091,0.000241,2]
[311673159,1705308638010,-365.86339531,0.000241,2]
[311673160,1705308638054,-7544.52978322,0.000241,2]
[311673161,1705308638128,-9251.19200621,0.000241,2]
[311673162,1705308638138,-499.99,0.000241,2]
[311673163,1705308638148,-200.0,0.00024259,2]
[311673164,1705308638158,-153.2,0.00024273,2]
[311673165,1705308638169,-302.55,0.00024289,2]
[311673166,1705308638179,-450.0,0.00024293,2]
[311673167,1705308638188,-443.34243456,0.00024327,2]
[311673168,1705308638200,-56.65756544,0.00024327,2]
[311673169,1705308638212,-150.0,0.0002433,2]
[311673170,1705308638223,-202.0,0.00024448,5]
[311673171,1705308638233,-211.07923828,0.00024565,2]
[311673172,1705308638243,-160.01,0.00024573,2]
[311673173,1705308638253,-250.0,0.00024658,2]
[311673174,1705308638263,-179.79719628,0.00024675,2]
[311673175,1705308638276,-829.68973938,0.00024675,2]
[311673176,1705308638285,-500.0,0.000247,2]
[311673177,1705308638295,-2000.0,0.00024754,2]
[311673178,1705308638306,-4650.31040837,0.00024775,2]
[311673179,1705308638338,-585.23996707,0.00024775,2]
[311673180,1705308638351,-1730.33376,0.00024775,2]
[311673181,1705308638366,-298.7905302,0.00024775,2]
[311673182,1705308638410,-12960.17013436,0.00024775,2]
[311673183,1705308638420,-23900.0,0.0002483,2]
[311673184,1705308638429,-2903.0,0.00024875,2]
[311673185,1705308638439,-3370.524,0.00024875,2]
[311673186,1705308638449,-2272.0,0.00024875,2]
[311673187,1705308638458,-727.64,0.00024923,2]
[311673188,1705308638468,-157.30938356,0.00024948,2]
[311673190,1705308638477,-164.69,0.00024973,2]
[311673192,1705308638486,-250.0,0.00024982,2]
[311673194,1705308638495,-735.93,0.00025,2]
[311673196,1705308638505,-630.56759467,0.00025,2]
[311673198,1705308638514,-1350.0,0.00025,3]
[311673200,1705308638523,-3843.19,0.00025028,2]
[311673202,1705308638532,-5183.6538,0.0002509,2]
[311673204,1705308638541,-633.6342,0.0002509,2]
[311673206,1705308638551,-158.22,0.00025155,2]
[311673208,1705308638560,-153.96,0.0002517,2]
[311673210,1705308638570,-200.0,0.00025178,2]
[311673212,1705308638579,-166.79,0.00025214,2]
[311673214,1705308638588,-609.45,0.00025219,2]
[311673215,1705308638597,-158.22,0.00025237,2]
[311673217,1705308638607,-871.0,0.00025262,2]
[311673219,1705308638616,-302.55,0.00025267,2]
[311673222,1705308638626,-153.96,0.00025302,2]
[311673224,1705308638635,-158.22,0.00025319,2]
[311673226,1705308638645,-404.02,0.00025339,2]
[311673228,1705308638654,-158.22,0.00025401,2]
[311673229,1705308638663,-5616.50151734,0.0002542,3]
[311673232,1705308638672,-405.32243835,0.00025421,3]
[311673234,1705308638681,-159.6,0.00025423,2]
[311673236,1705308638691,-426.66252819,0.00025426,3]
[311673238,1705308638700,-823.90351513,0.00025428,3]
[311673240,1705308638709,-179.01484154,0.00025432,3]
[311673241,1705308638718,-153.96,0.00025435,2]
[311673243,1705308638727,-1000.0,0.00025435,3]
[311673245,1705308638736,-155.67803749,0.00025444,3]
[311673247,1705308638745,-158.22,0.00025483,2]
[311673249,1705308638754,-158.22,0.00025565,2]
[311673251,1705308638764,-153.96,0.00025567,2]
[311673254,1705308638774,-158.22,0.00025647,2]
[311673256,1705308638783,-153.96,0.000257,2]
[311673257,1705308638792,-158.22,0.00025729,2]
[311673260,1705308638801,-716.56,0.00025749,2]
[311673261,1705308638811,-158.22,0.0002581,2]
[311673263,1705308638820,-153.96,0.00025832,2]
[311673266,1705308638829,-158.22,0.00025892,2]
[311673268,1705308638839,-153.96,0.00025965,2]
[311673270,1705308638848,-158.22,0.00025974,2]
[311673272,1705308638858,-4904.01815678,0.00026,2]
[311673274,1705308638871,-95.98184322,0.00026,2]
[311673276,1705308638880,-875.65524604,0.00026025,2]
[311673278,1705308638890,-476.75,0.00026052,2]
[311673280,1705308638900,-158.22,0.00026056,2]
[311673282,1705308638910,-150.0,0.00026079,2]
[311673284,1705308638920,-153.96,0.00026097,2]
[311673286,1705308638929,-641.17573514,0.00026119,2]
[311673288,1705308638941,-313.27,0.00026119,2]
[311673291,1705308638953,-18472.90876961,0.00026119,2]
[311673293,1705308638965,-1340.10551542,0.00026119,2]
[311673296,1705308638982,-261.99836,0.00026119,2]
[311673450,1705308640540,-1807.65857259,0.00026119,2]
[311673515,1705308641159,-498.1733841,0.0002473,2]
[311673522,1705308641218,-442.88535438,0.0002473,2]
[311673525,1705308641229,-501.7001713,0.0002473,2]
[311673530,1705308641276,-989.44359022,0.0002473,2]
[311673532,1705308641286,-152.86358732,0.00026119,2]
[311673535,1705308641298,-2777.58006446,0.00026119,2]
[311673541,1705308641347,-355.32,0.00026119,2]
[311673543,1705308641361,-268.51791053,0.00026119,2]
[311673637,1705308643040,-1648.37425309,0.00026119,2]
[311673638,1705308643158,-13824.7094207,0.00026119,2]
[311673639,1705308643216,-516.68256542,0.00026119,2]
[311673640,1705308643278,-861.16236143,0.00026119,2]
[311673641,1705308643289,-687.42428315,0.00026119,2]
[311673642,1705308643338,-6070.24860114,0.00026119,2]
[311673643,1705308643348,-157.30938356,0.00026123,2]
[311673644,1705308643358,-158.22,0.00026138,2]
[311673645,1705308643367,-158.22,0.0002622,2]
[311673646,1705308643377,-153.96,0.0002623,2]
[311673647,1705308643386,-302.55,0.00026246,2]
[311673648,1705308643395,-200.0,0.00026302,2]
[311673649,1705308643405,-158.22,0.00026302,2]
[311673650,1705308643415,-150.0,0.00026329,2]
[311673651,1705308643426,-150.0,0.00026329,2]
[311673652,1705308643435,-150.0,0.00026329,2]
[311673653,1705308643445,-153.96,0.00026362,2]
[311673654,1705308643454,-158.07,0.00026381,2]
[311673655,1705308643464,-158.22,0.00026384,2]
[311673656,1705308643473,-176.2,0.000264,2]
[311673657,1705308643483,-158.22,0.00026466,2]
[311673658,1705308643492,-153.96,0.00026495,2]
[311673659,1705308643501,-202.0,0.00026539,8]
[311673660,1705308643511,-471.31107766,0.00026573,2]
[311673661,1705308643521,-6343.43,0.00026575,2]
[311673662,1705308643530,-726.51,0.00026586,2]
[311673663,1705308643540,-153.96,0.00026627,2]
[311673664,1705308643549,-300.0,0.000267,9]
[311673665,1705308643558,-158.07,0.00026758,2]
[311673666,1705308643567,-153.96,0.0002676,2]
[311673667,1705308643577,-600.0,0.000268,9]
[311673668,1705308643587,-8650.0,0.00026852,2]
[311673669,1705308643596,-150.0,0.00026852,2]
[311673670,1705308643605,-153.96,0.00026892,2]
[311673671,1705308643616,-900.0,0.000269,9]
[311673672,1705308643625,-176.2,0.00026948,2]
[311673673,1705308643635,-1400.0,0.00027,3]
[311673674,1705308643644,-159.6,0.00027017,2]
[311673675,1705308643653,-153.96,0.00027024,2]
[311673676,1705308643662,-1941.4081,0.00027097,2]
[311673677,1705308643672,-196.35190265,0.00027121,2]
[311673678,1705308643681,-150.0,0.00027123,2]
[311673679,1705308643690,-158.07,0.00027135,2]
[311673680,1705308643699,-153.96,0.00027157,2]
[311673681,1705308643708,-500.0,0.00027178,2]
[311673682,1705308643718,-800.0,0.00027178,2]
[311673683,1705308643728,-500.0,0.00027197,2]
[311673684,1705308643738,-12164.64323357,0.00027197,2]
[311673686,1705308646388,-4622.0556,0.00027197,2]
[311673687,1705308646416,-2697.82926643,0.00027197,2]
[311673688,1705308646426,-343.24795043,0.00027197,2]
[311673689,1705308646435,-157.75376772,0.000272,2]
[311673690,1705308646444,-302.55,0.00027224,2]
[311673691,1705308646454,-2395.57653317,0.00027289,6]